fUST/lending_fUST_20240505
["ID","MTS","AMOUNT","RATE_DAILY","PERIOD"]
[325404053,1714850064956,150.0,0.00019504,3]
[325404054,1714850065536,150.0,0.00019822,3]
[325404056,1714850158769,280.37,0.000212,120]
[325404057,1714850176112,150.0,0.000189,2]
[325404058,1714850302471,10000.0,0.00026662,120]
[325404059,1714850316227,10000.0,0.0002002,2]
[325404060,1714850385204,384.399553,0.00019718,2]
[325404061,1714850408734,150.0,0.00019516,3]
[325404062,1714850409328,150.0,0.00019833,3]
[325404063,1714850477868,280.95378719,0.00019833,2]
[325404064,1714850477898,2085.48348055,0.00019833,2]
[325404065,1714850485744,154.76784823,0.00019833,2]
[325404066,1714850486697,154.76784823,0.00019833,2]
[325404067,1714850499833,280.95378719,0.00019833,2]
[325404068,1714850499865,1411.06423018,0.00019833,2]
[325404069,1714850501704,154.83867076,0.00019833,2]
[325404070,1714850508628,238.67226991,0.00019833,2]
[325404071,1714850515840,280.95378719,0.00019833,2]
[325404072,1714850516374,5239.89161392,0.000211,6]
[325404073,1714850538828,10000.0,0.0002002,2]
[325404074,1714850541839,280.95378719,0.00019833,2]
[325404075,1714850547779,3520.6956605,0.00019873,2]
[325404076,1714850561843,257.18925613,0.00019873,2]
[325404077,1714850642097,325.72567895,0.0002,2]
[325404078,1714850777998,238.4,0.00019533,3]
[325404079,1714850930192,1732.73803995,0.00021002,6]
[325404090,1714851032756,-306.009666,0.00020032,2]
[325404092,1714851032765,-80.00250685,0.00020055,2]
[325404094,1714851032776,-276.45291115,0.00020055,2]
[325404096,1714851032785,-306.0,0.000208,2]
[325404098,1714851032794,-153.0,0.000208,2]
[325404099,1714851032804,-153.0,0.00021,2]
[325404100,1714851032813,-153.0,0.00021,2]
[325404101,1714851032823,-306.0,0.00021,2]
[325404102,1714851032832,-306.0,0.00021,2]
[325404103,1714851032841,-153.0,0.00021,2]
[325404104,1714851032850,-30822.19799636,0.00021002,2]
[325404105,1714851032859,-645.97671291,0.00021106,2]
[325404106,1714851032868,-153.0,0.000212,2]
[325404107,1714851032877,-153.0,0.000212,2]
[325404108,1714851032887,-306.0,0.000212,2]
[325404109,1714851032896,-153.0,0.0002137,2]
[325404110,1714851032905,-306.0,0.0002137,2]
[325404111,1714851032914,-407.4898313,0.0002137,2]
[325404112,1714851032923,-153.0,0.0002137,2]
[325404113,1714851032933,-153.0,0.0002137,2]
[325404114,1714851032942,-153.0,0.0002137,2]
[325404115,1714851032951,-153.0,0.0002137,2]
[325404116,1714851032961,-153.0,0.0002137,2]
[325404117,1714851032970,-160.0,0.000214,2]
[325404118,1714851032979,-160.0,0.000214,2]
[325404119,1714851032988,-306.0,0.00021452,2]
[325404120,1714851032997,-306.0,0.00021452,2]
[325404121,1714851033007,-186.131287,0.00021528,2]
[325404122,1714851033016,-167.50457,0.00021528,2]
[325404123,1714851033025,-186.131287,0.00021528,2]
[325404124,1714851033035,-167.50457,0.00021528,2]
[325404125,1714851033044,-186.131287,0.00021528,2]
[325404126,1714851033053,-167.50457,0.00021528,2]
[325404127,1714851033062,-186.131287,0.00021528,2]
[325404128,1714851033072,-167.50457,0.00021528,2]
[325404129,1714851033081,-167.504569,0.00021528,2]
[325404130,1714851033091,-186.131287,0.00021528,2]
[325404131,1714851033100,-1026.7620254,0.00021566,2]
[325404132,1714851033109,-150.0,0.00021672,2]
[325404133,1714851033118,-493.0,0.00021672,2]
[325404134,1714851033128,-1291.31352089,0.00021694,2]
[325404135,1714851033137,-404.36,0.00021784,3]
[325404136,1714851033146,-313.7172,0.00021792,2]
[325404137,1714851033156,-604.05271005,0.00021792,2]
[325404138,1714851033165,-228.41272309,0.00021793,2]
[325404139,1714851033174,-186.131287,0.00021794,2]
[325404140,1714851033184,-167.50457,0.00021794,2]
[325404141,1714851033193,-186.131287,0.00021794,2]
[325404142,1714851033202,-167.50457,0.00021794,2]
[325404143,1714851033212,-186.131287,0.00021794,2]
[325404144,1714851033222,-167.50457,0.00021794,2]
[325404145,1714851033231,-186.131287,0.00021794,2]
[325404146,1714851033240,-167.50457,0.00021794,2]
[325404147,1714851033249,-167.504569,0.00021794,2]
[325404148,1714851033259,-186.131287,0.00021794,2]
[325404149,1714851033268,-7004.15797443,0.00021794,2]
[325404150,1714851033612,-22605.49135889,0.00021794,2]
[325404151,1714851033622,-151.0,0.00021794,2]
[325404152,1714851033631,-151.0,0.00021794,2]
[325404153,1714851033640,-195.96866,0.00021794,2]
[325404154,1714851033650,-151.0,0.00021794,2]
[325404155,1714851033659,-194.317408,0.00021794,2]
[325404156,1714851033668,-151.0,0.00021794,2]
[325404157,1714851033677,-153.091258,0.00021794,2]
[325404158,1714851033686,-151.0,0.00021794,2]
[325404159,1714851033696,-151.0,0.00021794,2]
[325404160,1714851033705,-151.0,0.00021794,2]
[325404161,1714851033714,-151.0,0.00021794,2]
[325404162,1714851033723,-151.0,0.00021794,2]
[325404163,1714851033732,-151.0,0.00021794,2]
[325404164,1714851033741,-151.0,0.00021794,2]
[325404165,1714851033750,-151.0,0.00021794,2]
[325404166,1714851033759,-151.0,0.00021794,2]
[325404167,1714851033769,-151.0,0.00021794,2]
[325404168,1714851033777,-161.398568,0.00021794,2]
[325404169,1714851033786,-151.0,0.00021794,2]
[325404170,1714851033796,-208.059961,0.00021794,2]
[325404171,1714851033805,-151.0,0.00021794,2]
[325404172,1714851033814,-151.0,0.00021794,2]
[325404173,1714851033824,-157.179256,0.00021794,2]
[325404174,1714851033833,-315.0,0.00021794,2]
[325404175,1714851033844,-315.0,0.00021794,2]
[325404176,1714851033854,-315.0,0.00021794,2]
[325404177,1714851033864,-315.0,0.00021794,2]
[325404178,1714851033875,-315.0,0.00021794,2]
[325404179,1714851033885,-315.0,0.00021794,2]
[325404180,1714851033895,-315.0,0.00021794,2]
[325404181,1714851033904,-315.0,0.00021794,2]
[325404182,1714851033913,-151.0,0.00021794,2]
[325404183,1714851033922,-315.0,0.00021794,2]
[325404184,1714851033932,-151.0,0.00021794,2]
[325404185,1714851033941,-315.0,0.00021794,2]
[325404186,1714851033950,-151.0,0.00021794,2]
[325404187,1714851033960,-315.0,0.00021794,2]
[325404188,1714851033970,-151.0,0.00021794,2]
[325404189,1714851033979,-315.0,0.00021794,2]
[325404190,1714851033988,-151.0,0.00021794,2]
[325404191,1714851033997,-315.0,0.00021794,2]
[325404192,1714851034007,-151.0,0.00021794,2]
[325404193,1714851034016,-251.980604,0.00021794,2]
[325404194,1714851034025,-315.0,0.00021794,2]
[325404195,1714851034035,-315.0,0.00021794,2]
[325404196,1714851034044,-315.0,0.00021794,2]
[325404197,1714851034053,-151.0,0.00021794,2]
[325404198,1714851034062,-151.0,0.00021794,2]
[325404199,1714851034071,-151.0,0.00021794,2]
[325404200,1714851034081,-151.0,0.00021794,2]
[325404201,1714851034090,-151.0,0.00021794,2]
[325404202,1714851034100,-151.0,0.00021794,2]
[325404203,1714851034109,-151.0,0.00021794,2]
[325404204,1714851034120,-151.0,0.00021794,2]
[325404205,1714851034130,-151.0,0.00021794,2]
[325404206,1714851034139,-162.751622,0.00021794,2]
[325404207,1714851034148,-151.0,0.00021794,2]
[325404208,1714851034160,-1143.837262,0.00021794,2]
[325404209,1714851034171,-1143.837262,0.00021794,2]
[325404210,1714851034180,-1143.837262,0.00021794,2]
[325404211,1714851034189,-1143.837262,0.00021794,2]
[325404212,1714851034198,-1143.837262,0.00021794,2]
[325404213,1714851034208,-1143.837262,0.00021794,2]
[325404214,1714851034217,-1143.837262,0.00021794,2]
[325404215,1714851034226,-1143.837262,0.00021794,2]
[325404216,1714851034236,-1143.837262,0.00021794,2]
[325404217,1714851034246,-1143.837262,0.00021794,2]
[325404218,1714851034255,-1143.837262,0.00021794,2]
[325404219,1714851034271,-1143.837262,0.00021794,2]
[325404220,1714851034281,-1143.837262,0.00021794,2]
[325404221,1714851034290,-1143.837262,0.00021794,2]
[325404222,1714851034299,-1143.837262,0.00021794,2]
[325404223,1714851034309,-1143.837262,0.00021794,2]
[325404224,1714851034318,-151.0,0.00021794,2]
[325404225,1714851034328,-151.0,0.00021794,2]
[325404226,1714851034337,-151.213274,0.00021794,2]
[325404227,1714851034346,-436.754794,0.00021794,2]
[325404228,1714851034356,-436.754794,0.00021794,2]
[325404229,1714851034366,-436.754794,0.00021794,2]
[325404230,1714851034375,-436.754794,0.00021794,2]
[325404231,1714851034384,-151.0,0.00021794,2]
[325404232,1714851034394,-436.754794,0.00021794,2]
[325404233,1714851034403,-151.0,0.00021794,2]
[325404234,1714851034413,-436.754794,0.00021794,2]
[325404235,1714851034424,-151.0,0.00021794,2]
[325404236,1714851034434,-436.754794,0.00021794,2]
[325404237,1714851034443,-151.0,0.00021794,2]
[325404238,1714851034451,-436.754794,0.00021794,2]
[325404239,1714851034462,-151.0,0.00021794,2]
[325404240,1714851034471,-243.257276,0.00021794,2]
[325404241,1714851034481,-436.754794,0.00021794,2]
[325404242,1714851034491,-436.754794,0.00021794,2]
[325404243,1714851034500,-436.754794,0.00021794,2]
[325404244,1714851034509,-436.754794,0.00021794,2]
[325404245,1714851034519,-436.754794,0.00021794,2]
[325404246,1714851034527,-436.754794,0.00021794,2]
[325404247,1714851034537,-436.754794,0.00021794,2]
[325404248,1714851034546,-436.754794,0.00021794,2]
[325404249,1714851034555,-151.0,0.00021794,2]
[325404250,1714851034564,-151.0,0.00021794,2]
[325404251,1714851034574,-151.0,0.00021794,2]
[325404252,1714851034583,-151.0,0.00021794,2]
[325404253,1714851034593,-151.0,0.00021794,2]
[325404254,1714851034605,-151.0,0.00021794,2]
[325404255,1714851034616,-151.0,0.00021794,2]
[325404256,1714851034626,-151.0,0.00021794,2]
[325404257,1714851034635,-151.0,0.00021794,2]
[325404258,1714851034647,-151.0,0.00021794,2]
[325404259,1714851034656,-151.0,0.00021794,2]
[325404260,1714851034666,-151.0,0.00021794,2]
[325404261,1714851034677,-297.441809,0.00021794,2]
[325404262,1714851034689,-243.854395,0.00021794,2]
[325404263,1714851034698,-151.0,0.00021794,2]
[325404264,1714851034709,-151.0,0.00021794,2]
[325404265,1714851034718,-151.0,0.00021794,2]
[325404266,1714851034728,-151.0,0.00021794,2]
[325404267,1714851034739,-151.0,0.00021794,2]
[325404268,1714851034749,-60.20329971,0.00021794,2]
[325404306,1714851038794,-90.79670029,0.00021794,2]
[325404308,1714851038803,-151.0,0.00021794,2]
[325404310,1714851038813,-151.0,0.00021794,2]
[325404312,1714851038822,-151.0,0.00021794,2]
[325404314,1714851038832,-151.0,0.00021794,2]
[325404316,1714851038841,-151.0,0.00021794,2]
[325404318,1714851038849,-151.0,0.00021794,2]
[325404320,1714851038859,-200.744141,0.00021794,2]
[325404322,1714851038867,-417.330754,0.00021794,2]
[325404324,1714851038877,-417.330754,0.00021794,2]
[325404326,1714851038886,-417.330754,0.00021794,2]
[325404328,1714851038895,-29.23537679,0.00021794,2]
[325404717,1714851044097,-388.09537721,0.00021794,2]
[325404719,1714851044107,-417.330754,0.00021794,2]
[325404721,1714851044116,-417.330754,0.00021794,2]
[325404723,1714851044126,-417.330754,0.00021794,2]
[325404725,1714851044136,-417.330754,0.00021794,2]
[325404739,1714851044265,-417.330754,0.00021794,2]
[325404741,1714851044275,-417.330754,0.00021794,2]
[325404743,1714851044285,-417.330754,0.00021794,2]
[325404745,1714851044294,-417.330754,0.00021794,2]
[325404747,1714851044303,-235.25859679,0.00021794,2]
[325404749,1714851044315,-182.07215721,0.00021794,2]
[325404751,1714851044324,-131.64504279,0.00021794,2]
[325404753,1714851044336,-285.68571121,0.00021794,2]
[325404755,1714851044345,-417.330754,0.00021794,2]
[325404758,1714851044354,-417.330754,0.00021794,2]
[325404761,1714851044364,-151.0,0.00021794,2]
[325404764,1714851044375,-151.298486,0.00021794,2]
[325404766,1714851044385,-151.0,0.00021794,2]
[325404768,1714851044394,-151.0,0.00021794,2]
[325404769,1714851044403,-151.0,0.00021794,2]
[325404772,1714851044413,-151.0,0.00021794,2]
[325404774,1714851044426,-151.0,0.00021794,2]
[325404775,1714851044435,-151.0,0.00021794,2]
[325404777,1714851044444,-151.0,0.00021794,2]
[325404779,1714851044455,-151.0,0.00021794,2]
[325404781,1714851044466,-151.0,0.00021794,2]
[325404784,1714851044476,-151.0,0.00021794,2]
[325404785,1714851044485,-151.0,0.00021794,2]
[325404787,1714851044497,-278.684905,0.00021794,2]
[325404789,1714851044507,-869.326277,0.00021794,2]
[325404791,1714851044516,-869.326277,0.00021794,2]
[325404793,1714851044526,-187.75081067,0.00021794,2]
[325405005,1714851046907,-681.57546633,0.00021794,2]
[325405007,1714851046916,-869.326277,0.00021794,2]
[325405009,1714851046926,-869.326277,0.00021794,2]
[325405011,1714851046935,-869.326277,0.00021794,2]
[325405013,1714851046944,-869.326277,0.00021794,2]
[325405015,1714851046954,-869.326277,0.00021794,2]
[325405017,1714851046963,-869.326277,0.00021794,2]
[325405019,1714851046972,-869.326277,0.00021794,2]
[325405021,1714851046981,-869.326277,0.00021794,2]
[325405023,1714851046990,-216.61431767,0.00021794,2]
[325406602,1714851080298,744.41830882,0.00019694,2]
[325406603,1714851162149,150.0,0.00019534,3]
[325406610,1714851381516,496.27887254,0.00019694,2]
[325406611,1714851454828,150.0,0.00019725,3]
[325406612,1714851463811,1622.84993563,9.999e-05,2]
[325406613,1714851470408,150.0,0.00019725,3]
[325406614,1714851507292,269.747928,0.0001984,2]
[325406615,1714851555263,154.91416692,0.00019,2]
[325406616,1714851608080,150.0,0.00019722,3]
[325406617,1714851608806,150.0,0.0002002,3]
[325406618,1714851652308,315.07078977,9.999e-05,2]
[325406619,1714851683297,330.8525817,0.00019694,2]
[325406620,1714851734611,164.21196802,9.999e-05,2]
[325406621,1714851756700,810.44672754,9.999e-05,2]
[325406622,1714851966693,522.45279288,9.999e-05,2]
[325406623,1714851984797,220.5683878,0.000189,2]
[325406624,1714851984871,269.747928,0.00019481,2]
[325406626,1714852019207,1347.30375243,9.999e-05,2]
[325406627,1714852033085,150.0,0.00019715,3]
[325406628,1714852033759,150.0,0.00020014,3]
[325406629,1714852108806,1395.88109697,9.999e-05,2]
[325406630,1714852115053,166.34331361,0.00019976,2]
[325406679,1714852232130,-202.18,0.00020066,3]
[325406682,1714852232142,-1346.36681665,0.00020073,2]
[325406683,1714852232154,-522.10579958,0.00020074,2]
[325406684,1714852232167,-80000.0,0.00020075,2]
[325406685,1714852232181,-14279.72909283,0.00020076,2]
[325406769,1714852243034,-6251.9881319,0.00020076,2]
[325406770,1714852243187,-1189.73765153,0.00020076,2]
[325406778,1714852286300,150.0,0.000189,2]
[325406780,1714852587552,150.0,0.000189,2]
[325406781,1714852589875,4568.85616076,0.00026,120]
[325406782,1714852589897,6395.51899179,0.00026,120]
[325406783,1714852592061,500.0,0.00019178,2]
[325406784,1714852592143,443.25,0.00019178,2]
[325406785,1714852609011,500.0,0.00019178,2]
[325406786,1714852671316,500.0,0.00019178,2]
[325406787,1714852858403,413.10097076,0.00019,2]
[325406788,1714852867439,3158.5451237,0.00019912,2]
[325406799,1714853243289,718.32745363,9.999e-05,2]
[325406808,1714853423907,150.0,0.00019734,3]
[325406864,1714853432163,-166.34331361,0.00020812,2]
[325406866,1714853432172,-1030.2941182,0.00020901,2]
[325406868,1714853432182,-59259.41902587,0.00020911,2]
[325406870,1714853432191,-2146.98179967,0.00020912,2]
[325406948,1714853432933,565.95,0.00019178,2]
[325407006,1714853434162,500.0,0.00019178,2]
[325407007,1714853434198,328.69755751,0.00019178,2]
[325407008,1714853434247,500.0,0.00019178,2]
[325407009,1714853434297,271.10948195,0.00019178,2]
[325407010,1714853434408,638.55929158,0.00019178,2]
[325407076,1714853492490,261.15932794,0.000189,2]
[325407077,1714853518099,205.68511407,0.00024,30]
[325407078,1714853794120,174.10621862,0.000189,2]
[325407079,1714853912311,242.55,0.00019178,2]
[325407080,1714854012914,203.85845913,0.00019178,2]
[325407081,1714854095266,150.0,0.000189,2]
[325407082,1714854115779,212.43605895,9.999e-05,2]
[325407083,1714854350675,1622.84993563,9.999e-05,2]
[325407084,1714854352288,16108.00888911,9.999e-05,2]
[325407085,1714854373564,290.65375248,9.999e-05,2]
[325407086,1714854389476,24900.0,0.00019995,2]
[325407087,1714854396517,150.0,0.000189,2]
[325407088,1714854405275,11978.80518424,9.999e-05,2]
[325407090,1714854465483,527.23402412,9.999e-05,2]
[325407091,1714854489638,475.53679444,9.999e-05,2]
[325407092,1714854511016,164.21196802,9.999e-05,2]
[325407093,1714854511260,1589.67863708,9.999e-05,2]
[325407094,1714854569445,558.047592,0.00019995,2]
[325407095,1714854573593,532.37819785,9.999e-05,2]
[325407096,1714854590403,412.46510919,9.999e-05,2]
[325407097,1714854596478,521.49441262,9.999e-05,2]
[325407479,1714854643563,-1233.63610492,0.00020911,2]
[325407769,1714854646384,-1509.60330033,0.00020911,2]
[325407771,1714854646395,-640.52,0.00020911,2]
[325412743,1714854697987,830.6236577,0.000189,2]
[325413409,1714854825214,189.53891685,0.00018,2]
[325413411,1714854999447,553.74910513,0.000189,2]
[325413413,1714855209549,622.58174739,0.0002,2]
[325413414,1714855220269,354.64628884,0.0002,2]
[325413415,1714855300931,369.16607009,0.000189,2]
[325413418,1714855354507,412.46510919,9.999e-05,2]
[325413419,1714855522377,273.10152157,0.000165,2]
[325413420,1714855557077,550.42296487,9.999e-05,2]
[325413421,1714855602062,246.11071339,0.000189,2]
[325413422,1714855606154,397.100764,0.00019871,2]
[325413423,1714855618099,-709.29257768,0.00020091,2]
[325413424,1714855618119,-6341.20678856,0.00020809,2]
[325413425,1714855626378,154.76784823,9.999e-05,2]
[325413426,1714855640243,154.76784823,9.999e-05,2]
[325413427,1714855656353,475.53679444,9.999e-05,2]
[325413428,1714855661458,161.453802,0.00019635,2]
[325413429,1714855663056,206.48477514,9.999e-05,2]
[325413430,1714855663606,473.34586328,9.999e-05,2]
[325413431,1714855665340,240.14730736,9.999e-05,2]
[325413432,1714855713787,500.0,0.00019178,2]
[325413433,1714855713820,250.20826085,0.00019178,2]
[325413434,1714855713864,214.93942441,0.00019178,2]
[325413435,1714855713911,500.0,0.00019178,2]
[325413436,1714855713952,483.45843836,0.00019178,2]
[325413438,1714855739498,166.666666,0.00019178,2]
[325413439,1714855746499,212.43605895,9.999e-05,2]
[325413440,1714855760175,3000.0,0.00019809,2]
[325413441,1714855760275,330.25226883,0.0002,2]
[325413442,1714855782651,200.0,0.0002,2]
[325413443,1714855786428,235.98542179,9.999e-05,2]
[325413451,1714855832641,-154.76784823,0.00020804,2]
[325413452,1714855832650,-240.14730736,0.00020805,2]
[325413453,1714855832660,-363.68714842,0.00020809,2]
[325413454,1714855832671,-1861.19508071,0.00020809,2]
[325413455,1714855832687,-16849.39252909,0.00020809,2]
[325413456,1714855832696,-1462.94152254,0.0002081,2]
[325413457,1714855832705,-164.23781899,0.0002081,2]
[325413458,1714855832714,-29962.18821305,0.0002091,2]
[325413459,1714855832723,-527.77031095,0.00020911,2]
[325413676,1714855842207,718.32745363,9.999e-05,2]
[325413747,1714855842882,683.7455978,9.999e-05,2]
[325413841,1714855843672,-7050.49936624,0.00020804,2]
[325413849,1714855843838,-5430.47860384,0.00020804,2]
[325413850,1714855843848,-2628.34812708,0.00020804,2]
[325413851,1714855843857,-6251.7392343,0.00020911,2]
[325413852,1714855843869,-620.12908737,0.00021,2]
[325413853,1714855843879,-160.0,0.000211,2]
[325413854,1714855843888,-153.0,0.000211,2]
[325413855,1714855843898,-306.0,0.000211,2]
[325413856,1714855843907,-153.0,0.000211,2]
[325413857,1714855843916,-153.0,0.000211,2]
[325413858,1714855843926,-153.0,0.000213,2]
[325413859,1714855843935,-153.0,0.000213,2]
[325413860,1714855843944,-153.0,0.000213,2]
[325413861,1714855843954,-153.0,0.000213,2]
[325413862,1714855843962,-153.0,0.000214,2]
[325413863,1714855843971,-153.0,0.000214,2]
[325413864,1714855843981,-493.0,0.00021596,2]
[325413866,1714855843991,-150.0,0.00021596,2]
[325413868,1714855844000,-186.131291,0.00021694,2]
[325413870,1714855844010,-167.504574,0.00021694,2]
[325413872,1714855844020,-186.131287,0.00021694,2]
[325413874,1714855844030,-167.50457,0.00021694,2]
[325413876,1714855844039,-186.131287,0.00021694,2]
[325413878,1714855844049,-167.50457,0.00021694,2]
[325413880,1714855844059,-186.131287,0.00021694,2]
[325413882,1714855844068,-167.50457,0.00021694,2]
[325413884,1714855844078,-167.504569,0.00021694,2]
[325413886,1714855844087,-186.131287,0.00021694,2]
[325413888,1714855844096,-160.0,0.000217,2]
[325413890,1714855844106,-172.49487686,0.00021818,2]
[325413892,1714855844115,-166.666666,0.00021918,2]
[325413894,1714855844124,-3449.0140498,0.00021918,2]
[325413896,1714855844134,-313.7172,0.00021998,2]
[325413898,1714855844143,-212.12495159,0.00021998,2]
[325413900,1714855844153,-443.0776747,0.00021998,2]
[325413902,1714855844162,-604.05271005,0.00021998,2]
[325413904,1714855844171,-235.56250341,0.00021998,2]
[325413906,1714855844181,-890.802326,0.00021998,2]
[325413908,1714855844190,-1000.0,0.00021999,2]
[325413910,1714855844199,-151.0,0.00021999,2]
[325413912,1714855844209,-151.0,0.00021999,2]
[325413914,1714855844218,-267.543019,0.00021999,2]
[325413916,1714855844227,-267.543019,0.00021999,2]
[325413918,1714855844236,-228.767452,0.00021999,2]
[325413920,1714855844246,-228.767452,0.00021999,2]
[325413922,1714855844255,-164.82871537,0.00021999,2]
[325413924,1714855844264,-2451.13840054,0.00022,2]
[325413926,1714855844274,-10578.6422944,0.00022,2]
[325414397,1714855848887,200.24435406,0.00022995,30]
[325416065,1714855866045,1398.51943807,9.999e-05,2]
[325417940,1714855903613,214.07380893,0.000199,2]
[325417941,1714855926584,565.42105856,9.999e-05,2]
[325417942,1714856039687,20844.2223323,0.0002,2]
[325417943,1714856063304,193.97227624,9.999e-05,2]
[325417945,1714856087524,9683.60426596,0.0002,2]
[325417946,1714856088265,198.550382,0.00019721,2]
[325417947,1714856104850,409.52572391,9.999e-05,2]
[325417948,1714856136097,15537.8788742,0.00019876,2]
[325417949,1714856205067,192.71587262,0.00019898,2]
[325417950,1714856265445,1001.1062598,0.00019628,2]
[325417951,1714856276778,200.0,0.0002,2]
[325417952,1714856313792,500.0,0.00019178,2]
[325417953,1714856313823,500.0,0.00019178,2]
[325417954,1714856313854,500.0,0.00019178,2]
[325417955,1714856313882,500.0,0.00019178,2]
[325417956,1714856313915,500.0,0.00019178,2]
[325417957,1714856313949,500.0,0.00019178,2]
[325417958,1714856313979,500.0,0.00019178,2]
[325417959,1714856314017,500.0,0.00019178,2]
[325417960,1714856314046,500.0,0.00019178,2]
[325417961,1714856314076,203.1886175,0.00019178,2]
[325417962,1714856314105,500.0,0.00019178,2]
[325417963,1714856314139,500.0,0.00019178,2]
[325417964,1714856314168,500.0,0.00019178,2]
[325417965,1714856314199,500.0,0.00019178,2]
[325417966,1714856314236,500.0,0.00019178,2]
[325417967,1714856314265,500.0,0.00019178,2]
[325417968,1714856314294,500.0,0.00019178,2]
[325417969,1714856314331,500.0,0.00019178,2]
[325417970,1714856314362,500.0,0.00019178,2]
[325417971,1714856314395,500.0,0.00019178,2]
[325417972,1714856314427,500.0,0.00019178,2]
[325417973,1714856314459,500.0,0.00019178,2]
[325417974,1714856314490,599.66391424,0.00019178,2]
[325417975,1714856314519,500.0,0.00019178,2]
[325417976,1714856314553,281.3523935,0.00019178,2]
[325417977,1714856314586,500.0,0.00019178,2]
[325417978,1714856314619,500.0,0.00019178,2]
[325417979,1714856314651,500.0,0.00019178,2]
[325417980,1714856314680,500.0,0.00019178,2]
[325417981,1714856314742,500.0,0.00019178,2]
[325417982,1714856314781,500.0,0.00019178,2]
[325417983,1714856314816,405.43992528,0.00019178,2]
[325417984,1714856314970,500.0,0.00019178,2]
[325417985,1714856317668,1893.19317664,0.00019177,2]
[325417986,1714856321352,2628.34812708,0.00019177,2]
[325417987,1714856388179,24900.0,0.00019642,2]
[325417988,1714856506381,150.0,0.00019818,2]
[325417989,1714856576721,198.550382,0.00019632,2]
[325417990,1714856681125,273.10152157,0.000165,2]
[325417991,1714856689130,654.64497917,0.0002,2]
[325417992,1714856705088,492.14790622,0.0002,2]
[325417993,1714856705181,940.11007956,0.00015,2]
[325417994,1714856716510,1046.53443322,0.00015,2]
[325417995,1714856717715,550.42296487,9.999e-05,2]
[325417996,1714856722833,731.19073412,0.000138,2]
[325417997,1714856725152,488.60277858,0.0002,2]
[325417998,1714856728394,164.21196802,9.999e-05,2]
[325417999,1714856736483,493.95187292,9.999e-05,2]
[325418000,1714856742175,527.23402412,9.999e-05,2]
[325418001,1714856792670,1004.59051633,9.999e-05,2]
[325418002,1714856808129,150.0,0.000189,2]
[325418003,1714856849183,162.107203,0.00019313,2]
[325418004,1714856877493,24900.0,0.0001962,2]
[325418005,1714856940247,240.14730736,9.999e-05,2]
[325418006,1714856961278,521.49441262,9.999e-05,2]
[325418007,1714857008611,235.98542179,9.999e-05,2]
[325418008,1714857020795,718.32745363,9.999e-05,2]
[325418037,1714857031897,-149.00408615,0.00020373,2]
[325418039,1714857031908,-411.69800345,0.00020373,2]
[325418041,1714857031920,-2067.64603748,0.00020373,2]
[325418043,1714857031930,-6944.02242035,0.00020373,2]
[325418046,1714857031940,-2089.43303836,0.00020374,2]
[325418049,1714857031950,-306.27062332,0.00020391,2]
[325418052,1714857031960,-165.99571683,0.00020512,2]
[325418054,1714857031969,-189.16024168,0.00020618,2]
[325418055,1714857031979,-1459.07186812,0.000209,2]
[325418057,1714857031988,-165.9957168,0.00021074,2]